Cogmind - Beta 16.1 @@@ ROGUE MODE // 2026.04.16 @ 02:05:07 Player: Parkagirl Result: Destroyed by 9L-SG0(x) with Mass Driver Performance ------------- Evolutions (3) 1500 Regions Visited (7) 1400 Robots Destroyed (50) 250 Value Destroyed (1117) 1117 Prototype IDs (5) 100 Alien Tech Used (0) 0 Bonus (770) 770 TOTAL SCORE: 5137 Bonus ------- Follower Combat Kills 70 Entered Garrisons 200 Used RIF Installer 500 Cogmind --------- Core Integrity 0/700 Matter 268/300 Energy 100/100 System Corruption 6% Temperature Cool (0) Movement Core (150) Ox2 Location -7/Garrison Parts ------- > --- POWER (1) -------- (None) > --- PROPULSION (6) --- (None) > --- UTILITY (4) ------ Improved Target Analyzer Hacking Suite > --- WEAPON (2) ------- Precision Rocket Launcher > --- INVENTORY (5) ---- Light Nuclear Core Improved Melee Analysis Suite Particle Gun Peak State ------------ > --- POWER ------------ (None) > --- PROPULSION ------- Improved Flight Unit Surge Thruster Surge Thruster Surge Thruster Surge Thruster Surge Thruster > --- UTILITY ---------- Advanced Targeting Computer ECM Suite Hacking Suite > --- WEAPON ----------- Advanced Beam Cannon Precision Rocket Launcher > --- INVENTORY -------- (None) [Rating: 34] Favorites ----------- Power Light Ion Engine Engine Light Ion Engine Power Core Light Nuclear Core Propulsion Aluminum Leg Treads Improved Treads Leg Aluminum Leg Flight Unit Flight Unit Utility Small Storage Unit Device Improved Terrain Scanner Storage Small Storage Unit Processor Advanced Targeting Computer Hackware Hacking Suite Protection Light Armor Plating Weapon Assault Rifle Energy Gun Medium Laser Energy Cannon Advanced Beam Cannon Ballistic Gun Assault Rifle Ballistic Cannon Heavy Assault Cannon Launcher Rocket Launcher Build | -11 -10 -9 -9 -8 -8 -7 -7 ------- Run | Yrd Mat Mat Min Mat Sto Fac Gar Slots Evolved 6 | . . 2 . 2 . 2 . Power . | . . . . . . . . Propulsion 4 | . . 2 . . . 2 . Utility 2 | . . . . 2 . . . Weapon . | . . . . . . . . Parts Attached 64 | 7 . 8 7 21 5 2 14 Power 6 | 1 . 1 1 2 . . 1 Engine 4 | 1 . . 1 1 . . 1 Core 2 | . . 1 . 1 . . . Reactor . | . . . . . . . . Propulsion 29 | 2 . 5 4 6 1 2 9 Treads 4 | . . . 4 . . . . Leg 10 | 2 . 5 . . . . 3 Wheel . | . . . . . . . . Hover . | . . . . . . . . Flight 15 | . . . . 6 1 2 6 Utility 15 | 2 . . . 9 2 . 2 Device 6 | 1 . . . 3 1 . 1 Storage 1 | 1 . . . . . . . Processor 5 | . . . . 4 . . 1 Hackware 1 | . . . . . 1 . . Protection 2 | . . . . 2 . . . Artifact . | . . . . . . . . Weapon 14 | 2 . 2 2 4 2 . 2 Energy Gun 3 | . . 1 . 1 . . 1 Energy Cannon 2 | . . . . 1 . . 1 Ballistic Gun 4 | 2 . . . 1 1 . . Ballistic Cannon 1 | . . . . 1 . . . Launcher 4 | . . 1 2 . 1 . . Special Weapon . | . . . . . . . . Impact Weapon . | . . . . . . . . Slashing Weapon . | . . . . . . . . Piercing Weapon . | . . . . . . . . Special Melee Weapon . | . . . . . . . . Unidentified Prototypes 3 | . . . . . 2 . 1 Parts Lost 43 | . . 7 6 7 1 7 15 Power 6 | . . 1 1 2 . 1 1 Propulsion 23 | . . 4 1 4 . 4 10 Utility 6 | . . . 1 1 . 1 3 Weapon 8 | . . 2 3 . 1 1 1 Highest Loss Streak 7 | . . 6 5 6 1 5 7 To Critical Strikes . | . . . . . . . . Average Backups 4 | 3 6 6 7 2 1 1 2 Power . | . 1 1 1 . . . . Propulsion 1 | 2 4 3 2 1 . . . Utility . | . . 1 2 . . . . Weapon . | . 1 1 . . 1 1 1 Tool/Special . | . . . . . . . . Unused Backups 9 | . . 6 . 1 . . 2 Power 1 | . . . . . . . 1 Propulsion 6 | . . 5 . 1 . . . Utility 2 | . . 1 . . . . 1 Weapon . | . . . . . . . . Tool/Special . | . . . . . . . . Average Slot Usage (%) 74 | . 100 89 91 65 76 59 54 Engine 6 | . 14 7 11 3 7 3 3 Treads 8 | . . . 29 14 . . . Leg 10 | . 28 35 10 5 . . 3 Flight 10 | . . . . 11 26 20 16 Device 9 | . 14 11 10 6 17 11 5 Storage 5 | . 14 11 11 4 . . . Processor 4 | . . . . 5 9 7 10 Hackware 2 | . . . . . 6 7 7 Energy Gun 2 | . . 4 3 4 . . 1 Energy Cannon 1 | . . . . 1 . . 3 Ballistic Gun 5 | . 28 16 1 1 5 3 . Launcher 3 | . . . 12 . 3 3 . Peak Build Rating 34 | 9 9 14 17 18 20 27 34 Average Rating 14 | 6 9 11 14 12 18 18 21 On Entrance 9 | . 9 9 11 8 10 20 10 Avg Prop Armor Cover (%) 12 | . . . . 9 6 4 18 Naked Turns 33 | . . . . 33 . . . Heaviest Build 24 | 13 13 15 17 24 12 12 14 Greatest Support 89 | 20 20 40 89 69 13 18 35 Greatest Overweight (x) 3 | . . . . 2 . 1 3 Average Overweight (x) . | . . . . . . . . Largest Inventory Capacity 8 | 8 8 8 8 8 5 5 5 Average Capacity 6 | 7 8 8 8 6 5 5 5 Most Carried 8 | 6 7 8 8 7 3 2 4 Average Carried 4 | 4 6 6 7 2 1 1 2 Final Capacity 8 | 8 8 8 8 5 5 5 5 Final Carried 8 | 6 7 8 8 3 1 2 3 Class Distribution -------------------- 68% | Mutant 20% | Scavenger-Mutant 9% | Scavenger-Sprinter Dominant Class ---------------- Mutant | -10/Materials Scavenger-Mutant | -9/Materials Mutant | -9/Mines Mutant | -8/Materials Mutant | -8/Storage Mutant | -7/Factory Scavenger-Sprinter | -7/Garrison Resources | -11 -10 -9 -9 -8 -8 -7 -7 ----------- Run | Yrd Mat Mat Min Mat Sto Fac Gar Matter Collected 1255 | 294 . 216 44 221 53 195 232 Remotely . | . . . . . . . . Salvage Created 1333 | 78 . 359 127 233 53 263 220 Parts 91 | 4 . 33 12 17 1 10 14 Haulers Intercepted 1 | . . 1 . . . . . Recyclers Shooed 2 | . . . . . . 2 . Parts Field Recycled . | . . . . . . . . Retrieved Matter . | . . . . . . . . Parts Self-Destructed . | . . . . . . . . Prevented . | . . . . . . . . Parts Restored . | . . . . . . . . Kills | -11 -10 -9 -9 -8 -8 -7 -7 ------- Run | Yrd Mat Mat Min Mat Sto Fac Gar Combat Hostiles Destroyed 43 | . . 14 8 8 1 4 8 Guns 23 | . . 8 4 6 1 4 . Cannons 4 | . . . . 1 . . 3 AOE 14 | . . 6 4 . . . 4 Classes Destroyed 12 | 1 . 4 2 1 . 1 3 Worker 1 | . . . . 1 . . . Builder 2 | . . 2 . . . . . Tunneler 3 | 3 . . . . . . . Hauler 1 | . . 1 . . . . . Recycler 2 | . . . . . . 2 . Swarmer 26 | . . 8 4 6 . 4 4 Cutter 1 | . . . . . . . 1 Grunt 9 | . . 6 . 2 1 . . Duelist 1 | . . . . . . . 1 Sentry 2 | . . . 2 . . . . Programmer 2 | . . . . . . . 2 Assembled 2 | . . . 2 . . . . Best Kill Streak 11 | 2 . 11 4 4 1 5 4 Combat Bots Only 8 | . . 8 4 5 1 4 4 Max Kills in Single Turn 8 | 1 . 8 1 1 1 1 4 Gunslinging . | . . . . . . . . Exploded 5 | . . 5 1 . . . 4 Melee . | . . . . . . . . Uniques/NPCs Destroyed . | . . . . . . . . Combat | -11 -10 -9 -9 -8 -8 -7 -7 -------- Run | Yrd Mat Mat Min Mat Sto Fac Gar Hostile Shots Fired 475 | . . 94 64 134 21 59 103 Missed 166 | . . 20 9 59 17 19 42 Hits 309 | . . 74 55 75 4 40 61 Melee 13 | . . . 8 3 . . 2 Projectile 296 | . . 74 47 72 4 40 59 AOE 1 | . . . . . . . 1 Critical Strikes 8 | . . . . 4 . . 4 Part Disruptions 2 | . . . 1 . . . 1 Damage Taken 4699 | . . 836 894 966 62 612 1329 Core 1254 | . . 151 166 193 32 288 424 Absorbed by Shields 5 | . . . . . . . 5 Core Remaining (%) 69 | 100 100 . 20 . 59 . . Volleys Fired 135 | 5 . 26 13 27 5 21 38 Largest 2 | 2 . 2 2 1 1 1 2 Hottest 133 | 40 . 70 70 56 28 28 133 Shots Fired 175 | 10 . 49 25 27 5 21 38 Gun 125 | 10 . 47 13 20 5 21 9 Cannon 34 | . . . . 7 . . 27 Launcher 16 | . . 2 12 . . . 2 Special . | . . . . . . . . Kinetic 98 | 10 . 41 6 15 5 21 . Thermal 49 | . . 6 7 . . . 36 Explosive 16 | . . 2 12 . . . 2 Electromagnetic 12 | . . . . 12 . . . Robot Hit Streak 19 | 2 . 19 6 9 6 5 10 Robot Miss Streak 3 | 2 . 2 2 2 1 2 3 Penetration Max 1 | . . . . 1 . 1 . Secondary Targets 1 | . . 1 . . . . . Max Gunslinging Chain 1 | . . 1 . . . . . Shots Hit Robots 115 | 5 . 31 12 19 4 15 29 Core Hits 72 | 3 . 24 13 12 2 7 11 Critical Kills . | . . . . . . . . Critical Parts Destroyed 1 | . . . . . . 1 . Critical Strikes 1 | . . . . . . 1 . Destroy 1 | . . . . . . 1 . Melee Attacks . | . . . . . . . . Impact . | . . . . . . . . Slashing . | . . . . . . . . Piercing . | . . . . . . . . Sneak Attacks . | . . . . . . . . Combat Hostiles . | . . . . . . . . Follow-up Attacks . | . . . . . . . . Damage Inflicted 3475 | 62 . 1121 358 450 69 401 1014 Guns 1419 | 62 . 389 75 272 69 401 151 Cannons 634 | . . . . 165 . . 469 Explosions 1409 | . . 732 283 . . . 394 Melee . | . . . . . . . . Ramming 13 | . . . . 13 . . . Kinetic 1146 | 62 . 339 25 250 69 401 . Thermal 1313 | . . 643 50 . . . 620 Explosive 816 | . . 139 283 . . . 394 Electromagnetic 187 | . . . . 187 . . . Impact . | . . . . . . . . Slashing . | . . . . . . . . Piercing . | . . . . . . . . Highest Corruption 8 | . . . 8 . . 1 6 Average Corruption 2 | . . . 4 . . 1 2 Corruption Purged . | . . . . . . . . Corruption Blocked . | . . . . . . . . Effects 11 | . . . . . . 1 10 Message Errors 2 | . . . . . . . 2 Matter Fused 5 | . . . . . . 1 4 Energy Discharges 1 | . . . . . . . 1 Misfires 1 | . . . . . . . 1 Weapon Failures 2 | . . . . . . . 2 Overload Shots . | . . . . . . . . Overflow Damage 143 | . . 113 7 . . . 23 Projectiles 23 | . . . . . . . 23 Explosions 120 | . . 113 7 . . . . Melee . | . . . . . . . . Knockbacks . | . . . . . . . . Impact . | . . . . . . . . Kinetic . | . . . . . . . . Secondary . | . . . . . . . . Self-Inflicted Damage 198 | . . 89 103 6 . . . Shots 7 | . . 2 5 . . . . Rammed 4 | . . . . 4 . . . Targets Rammed 4 | . . . . 4 . . . Kicked . | . . . . . . . . Crushed . | . . . . . . . . Highest Temperature 53 | . . 12 8 48 . . 53 Average Temperature 17 | . . 6 5 17 . . 19 Received Heat Transfer 787 | . . 237 76 342 36 81 15 Siege Activations . | . . . . . . . . Martial Activations . | . . . . . . . . Shielding Activations . | . . . . . . . . Robots Disrupted . | . . . . . . . . Combat Hostiles . | . . . . . . . . Robots Corrupted 1 | . . . . 1 . . . Combat Hostiles 1 | . . . . 1 . . . Parts Fried 1 | . . . . 1 . . . Impact Corruptions . | . . . . . . . . Robots Melted 1 | . . . . . . . 1 Combat Hostiles 1 | . . . . . . . 1 Parts Melted 5 | . . 3 . . . . 2 Heat Transferred 1695 | . . 548 148 . . . 999 Parts Sabotaged . | . . . . . . . . Parts Stolen . | . . . . . . . . Parts Stripped . | . . . . . . . . Power Chain Reactions . | . . . . . . . . Alert | -11 -10 -9 -9 -8 -8 -7 -7 ------- Run | Yrd Mat Mat Min Mat Sto Fac Gar Maximum Alert Level 1 | . . 1 . 1 . . 1 Low Security (%) 91 | 100 100 52 100 90 100 100 98 Level 1 8 | . . 47 . 9 . . 1 Level 2 . | . . . . . . . . Level 3 . | . . . . . . . . Level 4 . | . . . . . . . . Level 5 . | . . . . . . . . High Security . | . . . . . . . . Max Security . | . . . . . . . . Peak Influence 270 | 5 . 270 125 222 83 55 269 Initial 75 | . . . 75 . 63 14 23 Average 75 | . . 129 60 75 50 19 123 Influence Increases 1541 | 15 . 385 183 352 89 133 384 Destroy 0b10 Robot/C 860 | . . 280 120 160 20 80 200 Destroy 0b10 Robot/NC 45 | 15 . 15 . 5 . 10 . Destroy Leader 102 | . . 42 10 30 . 10 10 Allied During Kill 10 | . . . . . . . 10 Successful Hack 109 | . . 5 . 20 39 33 12 Disable Machine 30 | . . 30 . . . . . Destroy Structure 100 | . . 13 53 2 . . 32 Partial Spotted 60 | . . . . 15 15 . 30 Lose Combat Pursuer 225 | . . . . 120 15 . 90 Influence Decreases 1304 | 15 . 190 378 200 209 132 180 Entered New Map 237 | . . . 120 . 89 18 10 Time Decay 643 | 15 . 120 214 130 110 54 . Lost Part 404 | . . 70 44 70 10 60 150 Lost Ally 20 | . . . . . . . 20 Squads Dispatched 7 | . . 1 . 1 4 1 . Investigation 5 | . . . . 1 3 1 . Extermination . | . . . . . . . . Reinforcement 2 | . . 1 . . 1 . . Assault . | . . . . . . . . Garrison . | . . . . . . . . Intercept . | . . . . . . . . Searches Triggered . | . . . . . . . . Construction Impeded . | . . . . . . . . Haulers Reinforced . | . . . . . . . . Active Scanning Responses . | . . . . . . . . Cargo Convoy Interrupts . | . . . . . . . . Stealth | -11 -10 -9 -9 -8 -8 -7 -7 --------- Run | Yrd Mat Mat Min Mat Sto Fac Gar Distress Signals 4 | . . 2 . 1 . 1 . Communications Jammed . | . . . . . . . . Distress Signals . | . . . . . . . . Times Spotted 124 | . 3 21 15 31 24 12 18 Peak Tracking Total 12 | . 3 10 6 12 10 8 9 Tactical Retreats 12 | . . . . 5 4 . 3 ECM-based Alert Blocks 14 | . . . . 1 13 . . Traps | -11 -10 -9 -9 -8 -8 -7 -7 ------- Run | Yrd Mat Mat Min Mat Sto Fac Gar Traps Triggered 5 | . . . . . . . 5 Indirectly . | . . . . . . . . Trap Hack Attempts . | . . . . . . . . Triggered . | . . . . . . . . Disarmed 3 | . . . . . 3 . . Reprogrammed 1 | . . 1 . . . . . Reused . | . . . . . . . . Traps Extracted . | . . . . . . . . Installed . | . . . . . . . . Triggered . | . . . . . . . . Machines | -11 -10 -9 -9 -8 -8 -7 -7 ---------- Run | Yrd Mat Mat Min Mat Sto Fac Gar Machines Disabled 4 | . . 2 . . . . 2 Max in Single Turn 2 | . . 2 . . . . 1 Machines Repaired . | . . . . . . . . Machines Dismantled . | . . . . . . . . Machines Sabotaged . | . . . . . . . . Overloaded Fab Kills . | . . . . . . . . Hacking | -11 -10 -9 -9 -8 -8 -7 -7 --------- Run | Yrd Mat Mat Min Mat Sto Fac Gar Machines Accessed 18 | . . 2 . 4 8 3 1 Terminals 14 | . . 1 . 4 7 1 1 Fabricators . | . . . . . . . . Repair Stations 1 | . . . . . 1 . . Recycling Units 2 | . . 1 . . . 1 . Scanalyzers . | . . . . . . . . Garrison Access 1 | . . . . . . 1 . Total Hacks 55 | . . 6 . 12 28 8 1 Successful 25 | . . 5 . 5 11 3 1 Failed 30 | . . 1 . 7 17 5 . Catastrophic 4 | . . . . 1 3 . . Database Lockouts . | . . . . . . . . Manual 1 | . . . . . 1 . . Terminals 46 | . . 4 . 12 26 3 1 Fabricators . | . . . . . . . . Repair Stations 2 | . . . . . 2 . . Recycling Units 6 | . . 2 . . . 4 . Scanalyzers . | . . . . . . . . Garrison Access 1 | . . . . . . 1 . Terminal Hacks 20 | . . 3 . 5 10 1 1 Robot Analysis 3 | . . . . 1 2 . . Prototype ID Bank 1 | . . . . 1 . . . Open Door 1 | . . . . . 1 . . Emergency Access Points 3 | . . . . 1 1 . 1 Locate Traps 4 | . . . . 2 1 1 . Disarm Traps 1 | . . . . . 1 . . Reprogram Traps 1 | . . 1 . . . . . Dispatch Records 1 | . . . . . 1 . . Transport Status 2 | . . 1 . . 1 . . Recall Reinforcements 1 | . . . . . 1 . . Zone Layout 2 | . . 1 . . 1 . . Fabricator Hacks . | . . . . . . . . Repair Station Hacks 1 | . . . . . 1 . . Refit 1 | . . . . . 1 . . Recycling Unit Hacks 3 | . . 2 . . . 1 . Report Inventory 1 | . . 1 . . . . . Retrieve Matter 1 | . . . . . . 1 . Retrieve Components 1 | . . 1 . . . . . Scanalyzer . | . . . . . . . . Garrison Access Hacks 1 | . . . . . . 1 . Unlock Access 1 | . . . . . . 1 . Unauthorized Hacks . | . . . . . . . . Terminals . | . . . . . . . . Fabricators . | . . . . . . . . Repair Stations . | . . . . . . . . Recycling Units . | . . . . . . . . Scanalyzers . | . . . . . . . . Garrison Access . | . . . . . . . . Data Cores Recovered . | . . . . . . . . Used . | . . . . . . . . Hacking Detections 15 | . . 1 . 4 7 3 . Full Trace Events 5 | . . . . 1 3 1 . Feedback Events 1 | . . . . . . 1 . Corruption 1 | . . . . . . 1 . Feedback Blocked . | . . . . . . . . Robot Schematics Acquired . | . . . . . . . . Robots Built . | . . . . . . . . Authchips . | . . . . . . . . Time . | . . . . . . . . Total Robot Build Rating . | . . . . . . . . Part Schematics Acquired . | . . . . . . . . Parts Built . | . . . . . . . . Authchips . | . . . . . . . . Time . | . . . . . . . . Total Part Build Rating . | . . . . . . . . Part Studies Acquired . | . . . . . . . . Parts Repaired . | . . . . . . . . Time . | . . . . . . . . Parts Recycled . | . . . . . . . . Recycled Matter . | . . . . . . . . Retrieved Matter . | . . . . . . . . Retrieved Components 3 | . . 3 . . . . . Parts Scanalyzed . | . . . . . . . . Part Schematics Acquired . | . . . . . . . . Parts Damaged . | . . . . . . . . Bothacking | -11 -10 -9 -9 -8 -8 -7 -7 ------------ Run | Yrd Mat Mat Min Mat Sto Fac Gar Used RIF Installer 1 | . . . . . . . 1 Robots Hacked . | . . . . . . . . Non-combat . | . . . . . . . . Combat . | . . . . . . . . Robot Hacks Applied . | . . . . . . . . Relay Couplers Released . | . . . . . . . . Fabnet Peak Effective % . | . . . . . . . . Robots Rewired . | . . . . . . . . Allies Hacked . | . . . . . . . . Hacks Repelled . | . . . . . . . . Allies | -11 -10 -9 -9 -8 -8 -7 -7 -------- Run | Yrd Mat Mat Min Mat Sto Fac Gar Total Allies 2 | . . . . . . . 2 Largest Group 2 | . . . . . . . 2 Highest-Rated Group 157 | . . . . . . . 157 Highest-Rated Ally 95 | . . . . . . . 95 Total Orders . | . . . . . . . . Ally Attacks 18 | . . . . . . . 18 Total Damage 742 | . . . . . . . 742 Kills 2 | . . . . . . . 2 Allies Corrupted . | . . . . . . . . Allies Melted . | . . . . . . . . Intel | -11 -10 -9 -9 -8 -8 -7 -7 ------- Run | Yrd Mat Mat Min Mat Sto Fac Gar Active Infowar (turns) 1380 | 33 142 301 436 158 226 84 . Terrain 912 | 33 142 301 436 . . . . Seismic 331 | . . . . 21 226 84 . ECM 202 | . . . . 137 65 . . Robot Analysis Total 3 | . . . . 1 2 . . Derelict Logs Recovered . | . . . . . . . . Drone Launches . | . . . . . . . . Drone Recoveries . | . . . . . . . . Exploration | -11 -10 -9 -9 -8 -8 -7 -7 ------------- Run | Yrd Mat Mat Min Mat Sto Fac Gar Turns Passed 2369 | 148 142 301 470 392 226 154 536 Spaces Moved 2518 | 101 118 164 288 386 608 314 539 Core 125 | 6 . . . 67 . . 52 Treads 275 | . . . 183 92 . . . Legs 572 | 95 118 164 105 7 . . 83 Wheels . | . . . . . . . . Hover . | . . . . . . . . Flight 1546 | . . . . 220 608 314 404 Fastest Speed 24 | 50 120 120 120 31 34 29 24 Average Speed 72 | 115 120 120 145 71 34 33 66 Slowest Speed 260 | 120 120 120 160 260 37 110 200 Overloaded Moves 30 | . . . . . . . 30 Propulsion Burnouts 2 | . . . . . . . 2 Robots Hopped 19 | . . . . 2 5 11 1 Potential Cave-ins . | . . . . . . . . Cave-ins Triggered . | . . . . . . . . Exploration Rate (%) 35 | 5 28 20 49 37 81 9 52 Regions Visited 7 Branch Regions 2 Pre-discovered Areas . | . . . . . . . . Known Exits Taken 1 | . . . . . . 1 . Unknown Exits Taken 6 | 1 1 1 1 1 1 . . Scrap Searched . | . . . . . . . . Spaces Dug 18 | . . . 18 . . . . Terrain Destroyed 109 | . . 12 59 2 . . 36 Melee . | . . . . . . . . Projectile 2 | . . . . 2 . . . AOE 107 | . . 12 59 . . . 36 Terrain Rammed . | . . . . . . . . Walls Destroyed . | . . . . . . . . Machines Disabled . | . . . . . . . . Actions | -11 -10 -9 -9 -8 -8 -7 -7 --------- Run | Yrd Mat Mat Min Mat Sto Fac Gar Total 2848 | 118 118 220 313 463 615 328 673 Wait 19 | . . . . 15 1 . 3 Move 2474 | 100 117 163 287 381 598 294 534 Hop 15 | . . . . 2 4 8 1 Pick Up 39 | 6 1 13 4 9 1 1 4 Fast Attach 34 | 7 . 3 . 10 1 2 11 Attach 30 | . . 5 2 13 4 1 5 Detach 4 | . . . . . 1 1 2 Swap 8 | . . 2 5 1 . . . Drop 11 | . . 8 2 1 . . . Fire 135 | 5 . 26 13 27 5 21 38 Melee . | . . . . . . . . Ram 3 | . . . . 3 . . . Kick . | . . . . . . . . Crush 1 | . . . . 1 . . . Escape Stasis 75 | . . . . . . . 75 Rewire . | . . . . . . . . Trap . | . . . . . . . . Miscellaneous . | . . . . . . . . Route ------- -11/Scrapyard -10/Materials -9/Materials -9/Mines -8/Materials -8/Storage -7/Factory -7/Garrison (discovered 1 exit: [*Fac]) History --------- Turn | Location | Event 4 | -11/Scrapyard | Discovered new exit (range 15) 149 | -11/Scrapyard | Entered Materials 267 | -10/Materials | Discovered new exit (range 14) 291 | -10/Materials | Entered another Materials area 291 | -9/Materials | Evolved 2 slots: Propulsion x2 302 | -9/Materials | Build established: Mutant 456 | -9/Materials | Destroyed 8 combat bots 499 | -9/Materials | Lost 6 parts (1p3n2w) 574 | -9/Materials | Discovered new exit (range 12) 592 | -9/Materials | Entered Mines 680 | -9/Mines | Build established: Scavenger-Mutant 738 | -9/Mines | Received a Rocket Launcher from a helpful Derelict 771 | -9/Mines | Assembled infested the area 776 | -9/Mines | Assisted by a Guerilla fighting off Assembled 1020 | -9/Mines | Core integrity fell below 50% 1040 | -9/Mines | Discovered new exit (range 13) 1054 | -9/Mines | Build established: Mutant 1062 | -9/Mines | Entered Materials 1062 | -8/Materials | Evolved 2 slots: Utility x2 1091 | -8/Materials | Lost 5 parts (1p1n1u2w) 1261 | -8/Materials | Released all parts (10) 1312 | -8/Materials | Released all parts (5) 1441 | -8/Materials | Discovered new exit (range 16) 1454 | -8/Materials | Entered Storage 1476 | -8/Storage | Lost 6 parts (1p4n1u) 1675 | -8/Storage | Discovered new exit (range 15) 1680 | -8/Storage | Entered Factory 1680 | -7/Factory | Evolved 2 slots: Propulsion x2 1824 | -7/Factory | Lost 5 parts (1p3n1u) 1833 | -7/Factory | Identified exit to Garrison 1834 | -7/Factory | Entered Garrison 1854 | -7/Garrison | Triggered checkpoint 1897 | -7/Garrison | Core integrity fell below 50% 1924 | -7/Garrison | Found embedded Infiltrators 1926 | -7/Garrison | Discovered new exit (range 13) 1978 | -7/Garrison | Attempted to access garrison exit controls, blocked by remote lockdown 2034 | -7/Garrison | Triggered checkpoint 2083 | -7/Garrison | Rescued a captive Derelict 2085 | -7/Garrison | Rescued a captive Derelict 2100 | -7/Garrison | Installed Relay Interface Framework 2185 | -7/Garrison | Lost 7 parts (5n1u1w) 2334 | -7/Garrison | Triggered checkpoint 2340 | -7/Garrison | Triggered checkpoint 2348 | -7/Garrison | Core integrity fell below 20% 2370 | -7/Garrison | Destroyed by 9L-SG0(x) with Mass Driver Last Messages --------------- 02342_ C-45 Heavy ARC bursts open, deploying its payload. 02342_ S-27 Virus unfolds itself. 02342_ Slug penetrates Wall. 02345_ Knocked back. 02351_ Hyb. Deuterium Engine destroyed. 02351_ Aluminum Leg destroyed. 02361_ S-27 Virus destroyed. 02362_ Imp. VSS Leg destroyed. 02362_ Penetrated by Slug. 02362_ Aluminum Leg destroyed. 02363_ System corrupted: Prc. Rocket Launcher failed to launch. 02365_ Penetrated by Slug. 02365_ Knocked back. 02366_ The unstable cave ceiling collapses. 02366_ 3 Matter crushed. 02370_ Imp. Cooling System destroyed. 02370_ Adv. Targeting Computer destroyed. 02370_ Critical hit (Blast). Map ----- +----------------------------------------------------+ | ?????????????????????????????????????????????????? | | ?????????????????????????????????????????????????? | | ?????????????????????????????????????????????????? | | ?????????????????????????????????????????????????? | | ?????????????????????????????????????????????????? | | ?????????????????????????????????????????????????? | | ?????????????????????????????????????????????????? | | ?????????????????????????????????????????????????? | | ?????????????????????????????????????????????????? | | ?????????????????????????????????????????????????? | | ?????????????????????????????????????????????????? | | ?????????????????????????????????????????????????? | | ?????????????????????????????????????????????????? | | ???????????????????????###???????????????????????? | | ??????????????????????? ???????????????????????? | | ??????????????????????? ???????????????????????? | | ??++???????????????????# ???????????????????????? | | ???????????????????????# #??????????????????????? | | ?????????????+?????????# #??????????????????????? | | ???????????????????????# #??????????????????????? | | ???????????????????????+ #??????????????????????? | | ???????????????????????# #??????????????????????? | | ???????????????????????# #??????????????????????? | | ???????????????????????# #??????????????????????? | | ???????????????????????# %#??????????????????????? | | ???????????????????????# @#??????????????????????? | | ???????????????????????# #??????????????????????? | | ???????????????????????#% #??????????????????????? | | ???????????????????????# #??????????????????????? | | ???????????????????????#% #??????????????????????? | | ??????????????????????# ????????????????????+?? | | ?????????????????????# [=#?????????????????? #?? | | ?????????????????????# ????????????????# #?? | | ?????????????????????# ?????######""""## ##? | | ?????????????????????# x ##### ## | | ????????????????????? | | ???????????????????? % | | ????????????????????### #### ## ## #? | | ??????????????????????## ##### ## ## #? | | ???????????????????????#######?# "? | | ???????????????????????????????# "? | | ???????????????????????????????# " "? | | ???????????????????????????????# "%" "? | | ???????????????????????????????### "## ## #? | | ???????????????????????########### ## ## ## | | ???????????????????????# | | ???????????????????????# | | ???????????????????????# ###+#### | | ???????????????????????# #??????## ## ##++### | | ???????????????????????# #???????# #? #?????? | +----------------------------------------------------+ Best States ------------- Heat Dissipation 34 Energy Generation 14 Energy Capacity 800 Matter Stores 300 Matter Capacity 300 Sight Range 16 Terrain Scan Range 16 Terrain Scan Density 10 ECM Strength 1 Armor Coverage 150 Evasion (%) 64 Targeting Accuracy 8 Target Analysis 6 Recoil Reduction 4 Offensive Hacking 10 Item Schematics ----------------- None Robot Schematics ------------------ None Fabricated ------------ Nothing Repaired ---------- Nothing Studied --------- None Alien Tech Used ----------------- None Achievements -------------- Join The Dark Side Challenges ------------ None Game ------ Seed LargeMinesnifferCape Manual? 0 Play Time 00:48:47 Cumulative 21.5 hours Start 2026.04.15 @ 19:11:01 End 2026.04.16 @ 02:05:07 Sessions 3 Manual Loads 0 Difficulty Rogue Special Mode None Game No. 39 Rogue 39 Adventurer 0 Explorer 0 Win Type - Total 0 Types 0/0/0/0/0/0/0/0/0/0 Lore% 22 Gallery% 23 Achievement% 19 Wizard Run 0 Options --------- Layout 1 ASCII 0 Keyboard 0 Movement Vi Keybinds 0 Fullscreen 1 Font 24/Proggy Map View 50x40 Zoom Use 0% Tactical HUD 1 Map Filters NONE Filters NONE Steam 1 RUN: ec4c3504-15f7-4f38-af32-52ad57eb20ed